{"text_format":"1","workbook":"xlsx","n_sheets":14,"sheets":["Cover","Info","Results","E01","E02","E03","E04","E05","E06","E07","E08","E09","E10","About"],"not_rendered":{"charts":11,"images":38,"macros":1,"external_links":0,"defined_names":15,"comments":0,"pivot_tables":0},"unopened":[],"bounds":{"document_bytes":16777216,"sheet_cells":100000,"rows_first":2000,"rows_last":500,"rows_between":2000,"halvings":0,"cell_chars":16384,"cell_head_chars":4096},"cells_cut":0,"cells_raw":0,"read":"whole","date_system":"1900"}

{"sheet":"Cover","index":0,"n_rows":0,"n_cols":0,"rows_kept":0,"cut":false,"hidden":false,"merged":[]}

{"sheet":"Info","index":1,"n_rows":39,"n_cols":4,"rows_kept":39,"cut":false,"hidden":false,"merged":[[38,1,38,3],[39,1,39,3],[2,1,2,2],[3,1,3,2],[4,1,4,2],[5,1,5,2],[6,1,6,2],[37,1,37,3],[31,1,31,2],[32,1,32,2],[33,1,33,2],[34,1,34,2],[35,1,35,2]]}
[]
[]
[null,"Questa valutazione",null,"Risposta"]
[null,"Nome della città"]
[null,"Tipo di città (metropoli, area metropolitana, ecc.)"]
[null,"Paese"]
[null,"Data della valutazione"]
[]
[null,"Profilo della città (Richiesto)","Risposta","Data di origine"]
[null,"Titolo più alto ricoperto dall’autorità (per esempio: Sindaco, ecc.)"]
[null,"Numero totale della popolazione:"]
[null,"Estensione della città per km2:"]
[null,"Densità popolativa (per km2):"]
[null,"Popolazione giovane (15-24) (%):"]
[null,"Popolazione anziana (65+) (%):"]
[null,"Genere (nuclei famigliari gestiti da donne):"]
[null,"Tasso di alfabetizzazione (% popolazione alfabetizzata):"]
[null,"Tasso di povertà (% della popolazione non in condizioni di povertà):"]
[null,"Reddito familiare medio (USD):"]
[null,"Residenti non cittadini (%):"]
[null,"Rischio di disastro noto più probabile:"]
[null,"Disastro più grave (noto):"]
[]
[null,"Profilo città della (facoltativo)","Risposta","Data di origine"]
[null,"Numero totale delle famiglie:"]
[null,"Persone per unità:"]
[null,"Costo della vita (USD):"]
[null,"PIL pro capite del paese (USD)"]
[null,"Coefficiente di Gini:"]
[null,"Prodotto urbano pro capite (USD):"]
[]
[null,"Squadra per la riduzione del rischio di disastri e per la resilienza del governo locale",null,"Risposta"]
[null,"Nome della persona che guida / coordina il completamento della valutazione della scorecard:"]
[null,"Organizzazione:"]
[null,"Dettagli del contatto:"]
[null,"Disponibilità a condividere i risultati o ad utilizzarli come esempio / casi studio da parte di UNDRR e partner:"]
[]
[null,"Informazioni sugli attori coinvolti"]
[null,"Elenca di seguito tutte le parti interessate che hanno supportato questa valutazione."]

{"sheet":"Results","index":2,"n_rows":221,"n_cols":13,"rows_kept":221,"cut":false,"hidden":false,"merged":[[131,2,131,5],[35,2,35,5],[36,2,36,5],[37,2,37,5],[123,2,123,5],[124,2,124,5],[125,2,125,5],[47,2,47,5],[48,2,48,5],[49,2,49,5],[50,2,50,5],[126,2,126,5],[127,2,127,5],[128,2,128,5],[129,2,129,5],[130,2,130,5],[51,2,51,5],[61,2,61,5],[62,2,62,5],[63,2,63,5],[64,2,64,5],[89,2,89,5],[74,2,74,5],[75,2,75,5],[76,2,76,5],[77,2,77,5],[87,2,87,5],[88,2,88,5],[85,3,85,6],[111,2,111,5],[98,2,98,5],[96,2,96,5],[97,2,97,5],[108,2,108,5],[109,2,109,5],[110,2,110,5],[99,2,99,5],[100,2,100,5],[101,2,101,5],[158,1,158,3],[136,2,136,5],[137,2,137,5],[138,2,138,5],[139,2,139,5],[140,2,140,5],[141,2,141,5],[142,2,142,5],[148,2,148,5],[149,2,149,5]]}
[]
[]
[]
[]
[]
[]
[]
[]
[]
[]
[]
[]
[]
[]
[]
[]
[]
[]
[]
[]
[]
[]
[]
[]
[]
[]
[]
[]
[]
[]
[]
[]
[]
[null,"Essenziali ",null,{"$f":"D163","v":"01. ORGANIZZARSI PER LA RESILIENZA AI DISASTRI"}]
[]
[null,{"$f":"C175","v":"P1.1"},{"$f":"E175","v":"Il piano principale della città (o strategia / piano pertinente) include e attua modalità di DRR in accordo con il Framework di Sendai?"},null,null,null,{"$f":"F175","v":0}]
[null,{"$f":"C176","v":"P1.2"},{"$f":"E176","v":"Esiste un meccanismo tra agenzie/settori con adeguate autorità e risorse in grado di affrontare la DRR?"},null,null,null,{"$f":"F176","v":0}]
[null,{"$f":"C177","v":"P1.3"},{"$f":"E177","v":"La resilienza è correttamente integrata con altre funzioni chiave della città?"},null,null,null,{"$f":"F177","v":0}]
[]
[]
[]
[]
[]
[]
[]
[null,"Essenziali ",null,{"$f":"D164","v":"02. IDENTIFICARE, COMPRENDERE E UTILIZZARE\nGLI SCENARI DI RISCHIO PRESENTI E FUTURI"}]
[]
[null,{"$f":"C178","v":"P2.1"},{"$f":"E178","v":"La città ha conoscenza dei pericoli principali che essa corre, e della loro probabilità di avvenimento?"},null,null,null,{"$f":"F178","v":0}]
[null,{"$f":"C179","v":"P2.2"},{"$f":"E179","v":"Esiste una comprensione dei rischi condivisa tra la città e i vari fornitori di servizi e altre agenzie regionali e nazionali che hanno un ruolo nella gestione di infrastrutture quali l’energia elettrica, l’acqua, le strade e i treni, e dei punti di stress sul sistema e sui rischi a scala cittadina?"},null,null,null,{"$f":"F179","v":0}]
[null,{"$f":"C180","v":"P2.3"},{"$f":"E180","v":"Esistono scenari concordati che definiscono l'esposizione e la vulnerabilità a livello di tutta la città rispetto a ciascuno dei pericoli o a gruppi di pericoli (vedi sopra)?"},null,null,null,{"$f":"F180","v":0}]
[null,{"$f":"C181","v":"P2.4"},{"$f":"E181","v":"Esiste una comprensione collettiva di possibili fallimenti a cascata tra differenti sistemi e infrastrutture della città, sotto diversi scenari?"},null,null,null,{"$f":"F181","v":0}]
[null,{"$f":"C182","v":"P2.5"},{"$f":"E182","v":"Esistono mappe e dati che evidenzino il pericolo di rischi? Sono queste regolarmente aggiornate?"},null,null,null,{"$f":"F182","v":0}]
[]
[]
[]
[]
[]
[]
[]
[null,"Essenziali ",null,{"$f":"D165","v":"03. RAFFORZARE LE CAPACITA’ FINANZIARIE PER LA RESILIENZA"}]
[]
[null,{"$f":"C183","v":"P3.1"},{"$f":"E183","v":"Le città/agenzie principali comprendono tutte le risorse di finanziamento, e i \"dividendi di resilienza\", sono strettamente collegati tra di loro, conoscono tutti i percorsi disponibili per attirare finanziamenti esterni e stanno perseguendo attivamente i fondi per importanti investimenti di resilienza?"},null,null,null,{"$f":"F183","v":0}]
[null,{"$f":"C184","v":"P3.2"},{"$f":"E184","v":"La ha città una specifica “area recintata” di bilancio (protetta), le necessarie risorse e i fondi di emergenza per la riduzione del rischio di disatro locale (mitigazione, prevenzione, risposta e recupero)?"},null,null,null,{"$f":"F184","v":0}]
[null,{"$f":"C185","v":"P3.3"},{"$f":"E185","v":"Quale livello di assicurazione esiste nella città, in tutti i settori – attività private e comunità?"},null,null,null,{"$f":"F185","v":0}]
[null,{"$f":"C186","v":"P3.4"},{"$f":"E186","v":"Quali incentivi esistono per i diversi settori e segmenti di attività privata e società per sostenere il rafforzamento della resilienza?"},null,null,null,{"$f":"F186","v":0}]
[]
[]
[]
[]
[]
[]
[]
[null,"Essenziali ",null,{"$f":"D166","v":"04. PERSEGUIRE UNO SVILUPPO UMANO RESILIENTE"}]
[]
[null,{"$f":"C187","v":"P4.1"},{"$f":"E187","v":"La città ha dei piani di zonizzazione appropriati che prendono in considerazione, ad esempio, l’impatto dei principali rischi sull’attività economica, la produzione agricola, e i centri abitati?"},null,null,null,{"$f":"F187","v":0}]
[null,{"$f":"C188","v":"P4.2"},{"$f":"E188","v":"Vengono promossi approcci alla progettazione e allo sviluppo di nuove aree urbane che promuovano la resilienza?"},null,null,null,{"$f":"F188","v":0}]
[null,{"$f":"C189","v":"P4.3"},{"$f":"E189","v":"Esistono norme o standard che riguardano pericoli e rischi specifici e noti per la città? Questi standard vengono regolarmente aggiornati?"},null,null,null,{"$f":"F189","v":0}]
[null,{"$f":"C190","v":"P4.4"},{"$f":"E190","v":"Le regole di zonizzazione, le norme e gli standard sugli edifici vengono applicate ad ampio raggio, e verificate?"},null,null,null,{"$f":"F190","v":0}]
[]
[]
[]
[]
[]
[]
[]
[null,"Essenziali ",null,{"$f":"D167","v":"05. SALVAGUARDARE LE INTERFACCE NATURALI PERMIGLIORARE LE FUNZIONI PROTETTIVE OFFERTE DAGLIECOSISTEMI NATURALI"}]
[]
[null,{"$f":"C191","v":"P5.1"},{"$f":"E191","v":"Al di là di una semplice consapevolezza delle strutture naturali, la città comprende le funzioni (o i servizi) che questo capitale naturale fornisce alla città stessa?"},null,null,null,{"$f":"F191","v":0}]
[null,{"$f":"C192","v":"P5.2"},{"$f":"E192","v":"Viene l’infrastruttura verde e blu promossa, attraverso politiche, nei principali progetti di sviluppo urbanistico e di infrastrutture?"},null,null,null,{"$f":"F192","v":0}]
[null,{"$f":"C193","v":"P5.3"},{"$f":"E193","v":"È la città consapevole dei servizi ecosistemici che vengono forniti dal capitale naturale esistente al di là dei suoi confini amministrativi? Sono in vigore accordi con le amministrazioni limitrofe per sostenere la protezione e la gestione di questi beni?"},null,null,null,{"$f":"F193","v":0}]
[]
[]
[]
[]
[null,"Essenziali ",null,{"$f":"D168","v":"06. RAFFORZARE LA CAPACITA’ ISITUZIONALE ALLA RESILIENZA"}]
[]
[null,{"$f":"C194","v":"P6.1"},{"$f":"E194","v":"La città ha un chiaro accesso alle competenze ed esperienze che ritiene siano necessarie a rispondere alla riduzione dei rischi ed alla identificazione di scenari di rischio?"},null,null,null,{"$f":"F194","v":0}]
[null,"P6.2","Esiste una campagna che coopera le relazioni pubbliche e di educazione, con messaggi e canali strutturati per garantire che l’informazione sul pericolo, il rischio e il disastro (che possa essere compresa e utilizzata) sia distribuita al pubblico in maniera appropriata?",null,null,null,0]
[null,"P6.3","Livello di condivisione dei dati sul contesto di resilienza della città stessa, con altre organizzazioni coinvolte nella resilienza della città.",null,null,null,0]
[null,"P6.4","Vengono offerti a tutti i settori della città, inclusi amministrazione, attività economiche, ONG e comunità, corsi di formazione relativi ai rischi e alla resilienza?",null,null,null,0]
[null,"P6.5","Il materiale di formazione è disponibile nella gran parte delle lingue di uso comune nella città?",null,null,null,0]
[null,"P6.6","La città cerca in modo dinamico lo scambio di conoscenze e l’apprendimento da altre città che presentano simili sfide?",null,null,null,0]
[]
[]
[]
[]
[null,"Essenziali ",null,{"$f":"D169","v":"07. COMPRENDERE E RAFFORZARE LA CAPACITA’ DELLA SOCIETA’ ALLA RESILIENZA"}]
[]
[null,{"$f":"C200","v":"P7.1"},{"$f":"E200","v":"Esistono organizzazioni di comunità o di base che partecipano alla pianificazione pre-evento e alla risposta post-evento in ciascun quartiere nella città?"},null,null,null,{"$f":"F200","v":0}]
[null,{"$f":"C201","v":"P7.2"},{"$f":"E201","v":"Esistono programmi regolari di formazione forniti alla parte più vulnerabile e bisognosa della città?"},null,null,null,{"$f":"F201","v":0}]
[null,{"$f":"C202","v":"P7.3"},{"$f":"E202","v":"Quale proporzione delle attività imprenditoriali hanno un piano di continuità di attività documentato e che sia stato aggiornato negli ultimi 18 mesi?"},null,null,null,{"$f":"F202","v":0}]
[null,{"$f":"C203","v":"P7.4"},{"$f":"E203","v":"Quanto efficace è la città nel coinvolgimento dei cittadini e nelle comunicazioni relative a DRR?"},null,null,null,{"$f":"F203","v":0}]
[]
[]
[]
[]
[]
[]
[]
[]
[]
[null,"Essenziali ",null,{"$f":"D170","v":"08. AUMENTARE LA RESILIENZA DELLE INFRASTRUTTURE"}]
[]
[null,{"$f":"C204","v":"P8.1"},{"$f":"E204","v":"La resilienza delle infrastrutture critiche rappresenta una priorità della città? La città possiede e attua un piano o una strategia relativa alle infrastrutture critiche?"},null,null,null,{"$f":"F204","v":0}]
[null,{"$f":"C205","v":"P8.2"},{"$f":"E205","v":"Le infrastrutture protettive sono ben progettate e ben costruite sulla base delle informazioni sui rischi?"},null,null,null,{"$f":"F205","v":0}]
[null,"P8.3",{"$f":"E206","v":"Si prevederebbe una perdita significativa di supporto per questi due servizi essenziali per una parte significativa della città in base agli scenari di disastri noti?"},null,null,null,0]
[null,"P8.4",{"$f":"E207","v":"Sarebbe prevedibile una perdita significativa di servizio per una parte significativa della città nel caso di scenario di evento “più grave”? Nel caso di fallimento i corridoi dell’infrastruttura energetica rimarrebbero sicuri (cioè liberi da rischi di perdite, pericoli di scarica elettrica ecc.)?"},null,null,null,0]
[null,"P8.5","Sarebbe prevedibile una perdita apprezzabile del servizio per una parte significativa della città nel caso di scenario di evento “peggiore”? Nel caso di fallimento i corridoi dell’infrastruttura di trasporto rimarrebbero sicuri (cioè, liberi da rischi di inondazioni, scarica elettriche ecc.) e attraversabili?",null,null,null,0]
[null,"P8.6","Sarebbe prevedibile una perdita significativa di servizio per una parte considerevole della città nel caso di scenario di evento “peggiore”?",null,null,null,0]
[null,"P8.7","Ci sarebbero sufficienti capacità sanitarie importanti per affrontare le lesioni gravi che ci si aspettano nello scenario di evento “più grave”?",null,null,null,0]
[null,"P8.8","Percentuale delle strutture educative a rischio di danno a causa di scenari “più grave” e scenari “più probabili”.",null,null,null,0]
[null,{"$f":"C212","v":"P8.9"},"Sarà presente sufficiente equipaggiamento per il primo intervento, con sostegno militare e/o civile a secondo della necessità?",null,null,null,0]
[]
[]
[null,"Essenziali ",null,{"$f":"D171","v":"09. GARANTIRE UNA RISPOSTA EFFICACE AI DISASTRI"}]
[]
[null,{"$f":"C213","v":"P9.1"},{"$f":"E213","v":"La città ha un piano o delle procedure operative standardizzate per agire nella previsione e nella preallerta? Quale proporzione della popolazione è raggiungibile dal sistema di preallerta?"},null,null,null,{"$f":"F213","v":0}]
[null,{"$f":"C214","v":"P9.2"},"Esiste un piano per la gestione dei disastri / preparazione / risposta emergenziale che delinea la mitigazione, la preparazione e la risposta della città ad emergenze locali?",null,null,null,0]
[null,"P9.3","L’autorità responsabile per la gestione del disastro ha sufficiente capacità di personale per svolgere i compiti di prima risposta in caso di scenario di un evento che sovraccarica il sistema?",null,null,null,0]
[null,"P9.4","Le esigenze di equipaggiamento e rifornimenti, così come la disponibilità di equipaggiamento, sono definiti chiaramente?",null,null,null,0]
[null,"P9.5","La città sarebbe in grado di continuare ad alimentare e ad ospitare in rifugi la sua popolazione durante la fase successiva all’evento?",null,null,null,0]
[null,"P9.6","Esiste un centro operativo emergenziale, con la partecipazione di tutte le agenzie, con standard automatizzati di procedure operative disegnate specificatamente per affrontare gli scenari “più probabile” e “più grave”?",null,null,null,0]
[null,"P9.7","Le esercitazioni e le prove pratiche coinvolgono sia il pubblico che i professionisti?",null,null,null,0]
[]
[]
[]
[null,"Essenziali ",null,{"$f":"D172","v":"10. ACCELERARE IL RECUPERO E GARANTIRE UNA MIGLIORERICOSTRUZIONE"}]
[]
[null,{"$f":"C220","v":"P10.1"},{"$f":"E220","v":"E’ presente una strategia o vi è un processo per il recupero e la ricostruzione post-evento, che include la ripartenza economica, gli aspetti sociali, ecc.?"},null,null,null,{"$f":"F220","v":0}]
[null,{"$f":"C221","v":"P10.2"},{"$f":"E221","v":"I processi di valutazione degli eventi post-evento includono le analisi dei guasti e la capacità di catturare le lezioni apprese che poi entrano nella progettazione e nella fornitura di progetti di ricostruzione?"},null,null,null,{"$f":"F221","v":0}]
[]
[]
[]
[]
[]
[]
[]
[]
[null,{"$f":"TODAY()","v":"2020-11-17"}]
[]
[]
[null,null,"Label","Name",null,"Essential","TotalScore","MaxScore","Label"]
[null,null,"S1","01. ORGANIZZARSI PER LA RESILIENZA AI DISASTRI",null,"E1",{"$f":"SUMIFS($F$175:$F$1154,$B$175:$B$1154,F163)","v":0},{"$f":"COUNTIFS($B$175:$B$221,F163)*3","v":9},"01",null,{"$f":"SUM(G163:G172)","v":0},{"$f":"K163/K164","v":0},{"$f":"CONCATENATE(\"Il punteggio complessivo per questa valutazione è \",SUM(G163:G172),\" / \",SUM(H163:H172))","v":"Il punteggio complessivo per questa valutazione è 0 / 141"}]
[null,null,"S2","02. IDENTIFICARE, COMPRENDERE E UTILIZZARE\nGLI SCENARI DI RISCHIO PRESENTI E FUTURI",null,"E2",0,15,"02",null,{"$f":"SUM(H163:H172)","v":141},{"$f":"1-L163","v":1}]
[null,null,"S3","03. RAFFORZARE LE CAPACITA’ FINANZIARIE PER LA RESILIENZA",null,"E3",0,12,"03"]
[null,null,"S4","04. PERSEGUIRE UNO SVILUPPO UMANO RESILIENTE",null,"E4",0,12,"04"]
[null,null,"S5","05. SALVAGUARDARE LE INTERFACCE NATURALI PERMIGLIORARE LE FUNZIONI PROTETTIVE OFFERTE DAGLIECOSISTEMI NATURALI",null,"E5",0,9,"05"]
[null,null,"S6","06. RAFFORZARE LA CAPACITA’ ISITUZIONALE ALLA RESILIENZA",null,"E6",0,18,"06"]
[null,null,"S7","07. COMPRENDERE E RAFFORZARE LA CAPACITA’ DELLA SOCIETA’ ALLA RESILIENZA",null,"E7",0,12,"07"]
[null,null,"S8","08. AUMENTARE LA RESILIENZA DELLE INFRASTRUTTURE",null,"E8",0,27,"08"]
[null,null,"S9","09. GARANTIRE UNA RISPOSTA EFFICACE AI DISASTRI",null,"E9",0,21,"09"]
[null,null,"S10","10. ACCELERARE IL RECUPERO E GARANTIRE UNA MIGLIORERICOSTRUZIONE",null,"E10",0,6,"10"]
[]
[null,"Section","Ref",null,"Question","SelectedScore","ThisScore"]
[null,"E1","P1.1",null,"Il piano principale della città (o strategia / piano pertinente) include e attua modalità di DRR in accordo con il Framework di Sendai?",{"$f":"IF(G175=\"\",0,IF(G175=0,0,4-G175))","v":0},{"$f":"'E01'!$E$7","v":0}]
[null,"E1","P1.2",null,"Esiste un meccanismo tra agenzie/settori con adeguate autorità e risorse in grado di affrontare la DRR?",{"$f":"IF(G176=\"\",0,IF(G176=0,0,4-G176))","v":0},{"$f":"'E01'!$E$18","v":0}]
[null,"E1","P1.3",null,"La resilienza è correttamente integrata con altre funzioni chiave della città?",0,{"$f":"'E01'!$E$29","v":0}]
[null,"E2","P2.1",null,"La città ha conoscenza dei pericoli principali che essa corre, e della loro probabilità di avvenimento?",0,{"$f":"'E02'!$E$7","v":0}]
[null,"E2","P2.2",null,"Esiste una comprensione dei rischi condivisa tra la città e i vari fornitori di servizi e altre agenzie regionali e nazionali che hanno un ruolo nella gestione di infrastrutture quali l’energia elettrica, l’acqua, le strade e i treni, e dei punti di stress sul sistema e sui rischi a scala cittadina?",0,{"$f":"'E02'!$E$18","v":0}]
[null,"E2","P2.3",null,"Esistono scenari concordati che definiscono l'esposizione e la vulnerabilità a livello di tutta la città rispetto a ciascuno dei pericoli o a gruppi di pericoli (vedi sopra)?",0,{"$f":"'E02'!$E$29","v":0}]
[null,"E2","P2.4",null,"Esiste una comprensione collettiva di possibili fallimenti a cascata tra differenti sistemi e infrastrutture della città, sotto diversi scenari?",0,{"$f":"'E02'!$E$40","v":0}]
[null,"E2","P2.5",null,"Esistono mappe e dati che evidenzino il pericolo di rischi? Sono queste regolarmente aggiornate?",0,{"$f":"'E02'!$E$51","v":0}]
[null,"E3","P3.1",null,"Le città/agenzie principali comprendono tutte le risorse di finanziamento, e i \"dividendi di resilienza\", sono strettamente collegati tra di loro, conoscono tutti i percorsi disponibili per attirare finanziamenti esterni e stanno perseguendo attivamente i fondi per importanti investimenti di resilienza?",0,{"$f":"'E03'!$E$7","v":0}]
[null,"E3","P3.2",null,"La ha città una specifica “area recintata” di bilancio (protetta), le necessarie risorse e i fondi di emergenza per la riduzione del rischio di disatro locale (mitigazione, prevenzione, risposta e recupero)?",0,{"$f":"'E03'!$E$18","v":0}]
[null,"E3","P3.3",null,"Quale livello di assicurazione esiste nella città, in tutti i settori – attività private e comunità?",0,{"$f":"'E03'!$E$29","v":0}]
[null,"E3","P3.4",null,"Quali incentivi esistono per i diversi settori e segmenti di attività privata e società per sostenere il rafforzamento della resilienza?",0,{"$f":"'E03'!$E$40","v":0}]
[null,"E4","P4.1",null,"La città ha dei piani di zonizzazione appropriati che prendono in considerazione, ad esempio, l’impatto dei principali rischi sull’attività economica, la produzione agricola, e i centri abitati?",0,{"$f":"'E04'!$E$7","v":0}]
[null,"E4","P4.2",null,"Vengono promossi approcci alla progettazione e allo sviluppo di nuove aree urbane che promuovano la resilienza?",0,{"$f":"'E04'!$E$18","v":0}]
[null,"E4","P4.3",null,"Esistono norme o standard che riguardano pericoli e rischi specifici e noti per la città? Questi standard vengono regolarmente aggiornati?",0,{"$f":"'E04'!$E$29","v":0}]
[null,"E4","P4.4",null,"Le regole di zonizzazione, le norme e gli standard sugli edifici vengono applicate ad ampio raggio, e verificate?",0,{"$f":"'E04'!$E$40","v":0}]
[null,"E5","P5.1",null,"Al di là di una semplice consapevolezza delle strutture naturali, la città comprende le funzioni (o i servizi) che questo capitale naturale fornisce alla città stessa?",0,{"$f":"'E05'!$E$7","v":0}]
[null,"E5","P5.2",null,"Viene l’infrastruttura verde e blu promossa, attraverso politiche, nei principali progetti di sviluppo urbanistico e di infrastrutture?",0,{"$f":"'E05'!$E$18","v":0}]
[null,"E5","P5.3",null,"È la città consapevole dei servizi ecosistemici che vengono forniti dal capitale naturale esistente al di là dei suoi confini amministrativi? Sono in vigore accordi con le amministrazioni limitrofe per sostenere la protezione e la gestione di questi beni?",0,{"$f":"'E05'!$E$29","v":0}]
[null,"E6","P6.1",null,"La città ha un chiaro accesso alle competenze ed esperienze che ritiene siano necessarie a rispondere alla riduzione dei rischi ed alla identificazione di scenari di rischio?",0,{"$f":"'E06'!$E$7","v":0}]
[null,"E6","P6.2",null,"Esiste una campagna che coopera le relazioni pubbliche e di educazione, con messaggi e canali strutturati per garantire che l’informazione sul pericolo, il rischio e il disastro (che possa essere compresa e utilizzata) sia distribuita al pubblico in maniera appropriata?",0,{"$f":"'E06'!$E$18","v":0}]
[null,"E6","P6.3",null,"Livello di condivisione dei dati sul contesto di resilienza della città stessa, con altre organizzazioni coinvolte nella resilienza della città.",0,{"$f":"'E06'!$E$29","v":0}]
[null,"E6","P6.4",null,"Vengono offerti a tutti i settori della città, inclusi amministrazione, attività economiche, ONG e comunità, corsi di formazione relativi ai rischi e alla resilienza?",0,{"$f":"'E06'!$E$40","v":0}]
[null,"E6","P6.5",null,"Il materiale di formazione è disponibile nella gran parte delle lingue di uso comune nella città?",0,{"$f":"'E06'!$E$51","v":0}]
[null,"E6","P6.6",null,"La città cerca in modo dinamico lo scambio di conoscenze e l’apprendimento da altre città che presentano simili sfide?",0,{"$f":"'E06'!$E$62","v":0}]
[null,"E7","P7.1",null,"Esistono organizzazioni di comunità o di base che partecipano alla pianificazione pre-evento e alla risposta post-evento in ciascun quartiere nella città?",0,{"$f":"'E07'!$E$7","v":0}]
[null,"E7","P7.2",null,"Esistono programmi regolari di formazione forniti alla parte più vulnerabile e bisognosa della città?",0,{"$f":"'E07'!$E$18","v":0}]
[null,"E7","P7.3",null,"Quale proporzione delle attività imprenditoriali hanno un piano di continuità di attività documentato e che sia stato aggiornato negli ultimi 18 mesi?",0,{"$f":"'E07'!$E$29","v":0}]
[null,"E7","P7.4",null,"Quanto efficace è la città nel coinvolgimento dei cittadini e nelle comunicazioni relative a DRR?",0,{"$f":"'E07'!$E$40","v":0}]
[null,"E8","P8.1",null,"La resilienza delle infrastrutture critiche rappresenta una priorità della città? La città possiede e attua un piano o una strategia relativa alle infrastrutture critiche?",0,{"$f":"'E08'!E7","v":0}]
[null,"E8","P8.2",null,"Le infrastrutture protettive sono ben progettate e ben costruite sulla base delle informazioni sui rischi?",0,{"$f":"'E08'!E18","v":0}]
[null,"E8","P8.3",null,"Si prevederebbe una perdita significativa di supporto per questi due servizi essenziali per una parte significativa della città in base agli scenari di disastri noti?",0,{"$f":"'E08'!E29","v":0}]
[null,"E8","P8.4",null,"Sarebbe prevedibile una perdita significativa di servizio per una parte significativa della città nel caso di scenario di evento “più grave”? Nel caso di fallimento i corridoi dell’infrastruttura energetica rimarrebbero sicuri (cioè liberi da rischi di perdite, pericoli di scarica elettrica ecc.)?",0,{"$f":"'E08'!E40","v":0}]
[null,"E8","P8.5",null,"Sarebbe prevedibile una perdita apprezzabile del servizio per una parte significativa della città nel caso di scenario di evento “peggiore”? Nel caso di fallimento i corridoi dell’infrastruttura di trasporto rimarrebbero sicuri (cioè, liberi da rischi di inondazioni, scarica elettriche ecc.) e attraversabili?",0,{"$f":"'E08'!E51","v":0}]
[null,"E8","P8.6",null,"Sarebbe prevedibile una perdita significativa di servizio per una parte considerevole della città nel caso di scenario di evento “peggiore”?",0,{"$f":"'E08'!E62","v":0}]
[null,"E8","P8.7",null,"Ci sarebbero sufficienti capacità sanitarie importanti per affrontare le lesioni gravi che ci si aspettano nello scenario di evento “più grave”?",0,{"$f":"'E08'!E73","v":0}]
[null,"E8","P8.8",null,"Percentuale delle strutture educative a rischio di danno a causa di scenari “più grave” e scenari “più probabili”.",0,{"$f":"'E08'!E84","v":0}]
[null,"E8","P8.9",null,"Sarà presente sufficiente equipaggiamento per il primo intervento, con sostegno militare e/o civile a secondo della necessità?",0,{"$f":"'E08'!E95","v":0}]
[null,"E9","P9.1",null,"La città ha un piano o delle procedure operative standardizzate per agire nella previsione e nella preallerta? Quale proporzione della popolazione è raggiungibile dal sistema di preallerta?",0,{"$f":"'E09'!$E$7","v":0}]
[null,"E9","P9.2",null,"Esiste un piano per la gestione dei disastri / preparazione / risposta emergenziale che delinea la mitigazione, la preparazione e la risposta della città ad emergenze locali?",0,{"$f":"'E09'!$E$18","v":0}]
[null,"E9","P9.3",null,"L’autorità responsabile per la gestione del disastro ha sufficiente capacità di personale per svolgere i compiti di prima risposta in caso di scenario di un evento che sovraccarica il sistema?",0,{"$f":"'E09'!$E$29","v":0}]
[null,"E9","P9.4",null,"Le esigenze di equipaggiamento e rifornimenti, così come la disponibilità di equipaggiamento, sono definiti chiaramente?",0,{"$f":"'E09'!$E$40","v":0}]
[null,"E9","P9.5",null,"La città sarebbe in grado di continuare ad alimentare e ad ospitare in rifugi la sua popolazione durante la fase successiva all’evento?",0,{"$f":"'E09'!$E$51","v":0}]
[null,"E9","P9.6",null,"Esiste un centro operativo emergenziale, con la partecipazione di tutte le agenzie, con standard automatizzati di procedure operative disegnate specificatamente per affrontare gli scenari “più probabile” e “più grave”?",0,{"$f":"'E09'!$E$62","v":0}]
[null,"E9","P9.7",null,"Le esercitazioni e le prove pratiche coinvolgono sia il pubblico che i professionisti?",0,{"$f":"'E09'!$E$73","v":0}]
[null,"E10","P10.1",null,"E’ presente una strategia o vi è un processo per il recupero e la ricostruzione post-evento, che include la ripartenza economica, gli aspetti sociali, ecc.?",0,{"$f":"'E10'!$E$7","v":0}]
[null,"E10","P10.2",null,"I processi di valutazione degli eventi post-evento includono le analisi dei guasti e la capacità di catturare le lezioni apprese che poi entrano nella progettazione e nella fornitura di progetti di ricostruzione?",0,{"$f":"'E10'!$E$18","v":0}]

{"sheet":"E01","index":3,"n_rows":33,"n_cols":6,"rows_kept":33,"cut":false,"hidden":false,"merged":[[16,2,16,3],[4,2,4,3],[3,2,3,3],[5,2,5,3],[6,2,9,3],[14,2,14,3],[15,2,15,3],[17,2,20,3],[25,2,25,3],[26,2,26,3],[27,2,27,3],[28,2,31,3]]}
[]
[]
[null,"P1.1 - Pianificazione"]
[null,"Quesiti/area di valutazione","Commenti"]
[]
[null,"Risposta","Fornire mezzi di verifica (spiegazione e prove)"]
[null,null,null,null,null,{"$f":"IF(E7=1,TRUE,FALSE)","v":false}]
[null,null,null,null,null,{"$f":"IF(E7=2,TRUE,FALSE)","v":false}]
[null,null,null,null,null,{"$f":"IF(E7=3,TRUE,FALSE)","v":false}]
[null,null,null,null,null,{"$f":"IF(E7=4,TRUE,FALSE)","v":false}]
[null,"Azioni per raggiungere la massima resilienza","Istituzione responsabile","Scala temporale"]
[]
[]
[null,"P1.2 - Organizzazione, coordinazione e partecipazione"]
[null,"Quesiti/area di valutazione","Commenti"]
[]
[null,"Risposta","Fornire mezzi di verifica (spiegazione e prove)"]
[null,null,null,null,null,{"$f":"IF(E18=1,TRUE,FALSE)","v":false}]
[null,null,null,null,null,{"$f":"IF(E18=2,TRUE,FALSE)","v":false}]
[null,null,null,null,null,{"$f":"IF(E18=3,TRUE,FALSE)","v":false}]
[null,null,null,null,null,{"$f":"IF(E18=4,TRUE,FALSE)","v":false}]
[null,"Azioni per raggiungere la massima resilienza","Istituzione responsabile","Scala temporale"]
[]
[]
[null,"P1.3 - Integrazione"]
[null,"Quesiti/area di valutazione","Commenti"]
[]
[null,"Risposta","Fornire mezzi di verifica (spiegazione e prove)"]
[null,null,null,null,null,{"$f":"IF(E29=1,TRUE,FALSE)","v":false}]
[null,null,null,null,null,{"$f":"IF(E29=2,TRUE,FALSE)","v":false}]
[null,null,null,null,null,{"$f":"IF(E29=3,TRUE,FALSE)","v":false}]
[null,null,null,null,null,{"$f":"IF(E29=4,TRUE,FALSE)","v":false}]
[null,"Azioni per raggiungere la massima resilienza","Istituzione responsabile","Scala temporale"]

{"sheet":"E02","index":4,"n_rows":55,"n_cols":6,"rows_kept":55,"cut":false,"hidden":false,"merged":[[48,2,48,3],[49,2,49,3],[50,2,53,3],[14,2,14,3],[15,2,15,3],[36,2,36,3],[37,2,37,3],[38,2,38,3],[39,2,42,3],[16,2,16,3],[17,2,20,3],[25,2,25,3],[26,2,26,3],[27,2,27,3],[28,2,31,3],[3,2,3,3],[4,2,4,3],[5,2,5,3],[6,2,9,3],[47,2,47,3]]}
[]
[]
[null,"P2.1 - Valutazione di rischio"]
[null,"Quesiti/area di valutazione","Commenti"]
[]
[null,"Risposta","Fornire mezzi di verifica (spiegazione e prove)"]
[null,null,null,null,null,{"$f":"IF(E7=1,TRUE,FALSE)","v":false}]
[null,null,null,null,null,{"$f":"IF(E7=2,TRUE,FALSE)","v":false}]
[null,null,null,null,null,{"$f":"IF(E7=3,TRUE,FALSE)","v":false}]
[null,null,null,null,null,{"$f":"IF(E7=4,TRUE,FALSE)","v":false}]
[null,"Azioni per raggiungere la massima resilienza","Istituzione responsabile","Scala temporale"]
[]
[]
[null,"P2.2 - Comprensione condivisa dei rischi alle infrastrutture"]
[null,"Quesiti/area di valutazione","Commenti"]
[]
[null,"Risposta","Fornire mezzi di verifica (spiegazione e prove)"]
[null,null,null,null,null,{"$f":"IF(E18=1,TRUE,FALSE)","v":false}]
[null,null,null,null,null,{"$f":"IF(E18=2,TRUE,FALSE)","v":false}]
[null,null,null,null,null,{"$f":"IF(E18=3,TRUE,FALSE)","v":false}]
[null,null,null,null,null,{"$f":"IF(E18=4,TRUE,FALSE)","v":false}]
[null,"Azioni per raggiungere la massima resilienza","Istituzione responsabile","Scala temporale"]
[]
[]
[null,"P2.3 - Conoscenza dell’esposizione e della vulnerabilità"]
[null,"Quesiti/area di valutazione","Commenti"]
[]
[null,"Risposta","Fornire mezzi di verifica (spiegazione e prove)"]
[null,null,null,null,null,{"$f":"IF(E29=1,TRUE,FALSE)","v":false}]
[null,null,null,null,null,{"$f":"IF(E29=2,TRUE,FALSE)","v":false}]
[null,null,null,null,null,{"$f":"IF(E29=3,TRUE,FALSE)","v":false}]
[null,null,null,null,null,{"$f":"IF(E29=4,TRUE,FALSE)","v":false}]
[null,"Azioni per raggiungere la massima resilienza","Istituzione responsabile","Scala temporale"]
[]
[]
[null,"P2.4 - Impatti a cascata"]
[null,"Quesiti/area di valutazione","Commenti"]
[]
[null,"Risposta","Fornire mezzi di verifica (spiegazione e prove)"]
[null,null,null,null,null,{"$f":"IF(E40=1,TRUE,FALSE)","v":false}]
[null,null,null,null,null,{"$f":"IF(E40=2,TRUE,FALSE)","v":false}]
[null,null,null,null,null,{"$f":"IF(E40=3,TRUE,FALSE)","v":false}]
[null,null,null,null,null,{"$f":"IF(E40=4,TRUE,FALSE)","v":false}]
[null,"Azioni per raggiungere la massima resilienza","Istituzione responsabile","Scala temporale"]
[]
[]
[null,"P2.5 - Presentazione e processo di aggiornamento dell’informazione sui rischi"]
[null,"Quesiti/area di valutazione","Commenti"]
[]
[null,"Risposta","Fornire mezzi di verifica (spiegazione e prove)"]
[null,null,null,null,null,{"$f":"IF(E51=1,TRUE,FALSE)","v":false}]
[null,null,null,null,null,{"$f":"IF(E51=2,TRUE,FALSE)","v":false}]
[null,null,null,null,null,{"$f":"IF(E51=3,TRUE,FALSE)","v":false}]
[null,null,null,null,null,{"$f":"IF(E51=4,TRUE,FALSE)","v":false}]
[null,"Azioni per raggiungere la massima resilienza","Istituzione responsabile","Scala temporale"]

{"sheet":"E03","index":5,"n_rows":44,"n_cols":6,"rows_kept":44,"cut":false,"hidden":false,"merged":[[36,2,36,3],[37,2,37,3],[38,2,38,3],[39,2,42,3],[16,2,16,3],[17,2,20,3],[25,2,25,3],[26,2,26,3],[27,2,27,3],[28,2,31,3],[15,2,15,3],[3,2,3,3],[4,2,4,3],[5,2,5,3],[6,2,9,3],[14,2,14,3]]}
[]
[]
[null,"P3.1 - Conoscenza di metodologie per attirare nuovi investimenti nella città"]
[null,"Quesiti/area di valutazione","Commenti"]
[]
[null,"Risposta","Fornire mezzi di verifica (spiegazione e prove)"]
[null,null,null,null,null,{"$f":"IF(E7=1,TRUE,FALSE)","v":false}]
[null,null,null,null,null,{"$f":"IF(E7=2,TRUE,FALSE)","v":false}]
[null,null,null,null,null,{"$f":"IF(E7=3,TRUE,FALSE)","v":false}]
[null,null,null,null,null,{"$f":"IF(E7=4,TRUE,FALSE)","v":false}]
[null,"Azioni per raggiungere la massima resilienza","Istituzione responsabile","Scala temporale"]
[]
[]
[null,"P3.2 - Piano finanziario e budget per la resilienza, inclusi fondi di emergenza"]
[null,"Quesiti/area di valutazione","Commenti"]
[]
[null,"Risposta","Fornire mezzi di verifica (spiegazione e prove)"]
[null,null,null,null,null,{"$f":"IF(E18=1,TRUE,FALSE)","v":false}]
[null,null,null,null,null,{"$f":"IF(E18=2,TRUE,FALSE)","v":false}]
[null,null,null,null,null,{"$f":"IF(E18=3,TRUE,FALSE)","v":false}]
[null,null,null,null,null,{"$f":"IF(E18=4,TRUE,FALSE)","v":false}]
[null,"Azioni per raggiungere la massima resilienza","Istituzione responsabile","Scala temporale"]
[]
[]
[null,"P3.3 - Assicurazione"]
[null,"Quesiti/area di valutazione","Commenti"]
[]
[null,"Risposta","Fornire mezzi di verifica (spiegazione e prove)"]
[null,null,null,null,null,{"$f":"IF(E29=1,TRUE,FALSE)","v":false}]
[null,null,null,null,null,{"$f":"IF(E29=2,TRUE,FALSE)","v":false}]
[null,null,null,null,null,{"$f":"IF(E29=3,TRUE,FALSE)","v":false}]
[null,null,null,null,null,{"$f":"IF(E29=4,TRUE,FALSE)","v":false}]
[null,"Azioni per raggiungere la massima resilienza","Istituzione responsabile","Scala temporale"]
[]
[]
[null,"P3.4 - Incentivi"]
[null,"Quesiti/area di valutazione","Commenti"]
[]
[null,"Risposta","Fornire mezzi di verifica (spiegazione e prove)"]
[null,null,null,null,null,{"$f":"IF(E40=1,TRUE,FALSE)","v":false}]
[null,null,null,null,null,{"$f":"IF(E40=2,TRUE,FALSE)","v":false}]
[null,null,null,null,null,{"$f":"IF(E40=3,TRUE,FALSE)","v":false}]
[null,null,null,null,null,{"$f":"IF(E40=4,TRUE,FALSE)","v":false}]
[null,"Azioni per raggiungere la massima resilienza","Istituzione responsabile","Scala temporale"]

{"sheet":"E04","index":6,"n_rows":44,"n_cols":6,"rows_kept":44,"cut":false,"hidden":false,"merged":[[36,2,36,3],[37,2,37,3],[38,2,38,3],[39,2,42,3],[16,2,16,3],[17,2,20,3],[25,2,25,3],[26,2,26,3],[27,2,27,3],[28,2,31,3],[15,2,15,3],[3,2,3,3],[4,2,4,3],[5,2,5,3],[6,2,9,3],[14,2,14,3]]}
[]
[]
[null,"P4.1 - Zonizzazione sull’uso dei terreni"]
[null,"Quesiti/area di valutazione","Commenti"]
[]
[null,"Risposta","Fornire mezzi di verifica (spiegazione e prove)"]
[null,null,null,null,null,{"$f":"IF(E7=1,TRUE,FALSE)","v":false}]
[null,null,null,null,null,{"$f":"IF(E7=2,TRUE,FALSE)","v":false}]
[null,null,null,null,null,{"$f":"IF(E7=3,TRUE,FALSE)","v":false}]
[null,null,null,null,null,{"$f":"IF(E7=4,TRUE,FALSE)","v":false}]
[null,"Azioni per raggiungere la massima resilienza","Istituzione responsabile","Scala temporale"]
[]
[]
[null,"P4.2 - Nuovo sviluppo urbano"]
[null,"Quesiti/area di valutazione","Commenti"]
[]
[null,"Risposta","Fornire mezzi di verifica (spiegazione e prove)"]
[null,null,null,null,null,{"$f":"IF(E18=1,TRUE,FALSE)","v":false}]
[null,null,null,null,null,{"$f":"IF(E18=2,TRUE,FALSE)","v":false}]
[null,null,null,null,null,{"$f":"IF(E18=3,TRUE,FALSE)","v":false}]
[null,null,null,null,null,{"$f":"IF(E18=4,TRUE,FALSE)","v":false}]
[null,"Azioni per raggiungere la massima resilienza","Istituzione responsabile","Scala temporale"]
[]
[]
[null,"P4.3 - Norme e standard per gli edifici"]
[null,"Quesiti/area di valutazione","Commenti"]
[]
[null,"Risposta","Fornire mezzi di verifica (spiegazione e prove)"]
[null,null,null,null,null,{"$f":"IF(E29=1,TRUE,FALSE)","v":false}]
[null,null,null,null,null,{"$f":"IF(E29=2,TRUE,FALSE)","v":false}]
[null,null,null,null,null,{"$f":"IF(E29=3,TRUE,FALSE)","v":false}]
[null,null,null,null,null,{"$f":"IF(E29=4,TRUE,FALSE)","v":false}]
[null,"Azioni per raggiungere la massima resilienza","Istituzione responsabile","Scala temporale"]
[]
[]
[null,"P4.4 - Applicazione della zonizzazione, delle norme e standard per gli edifici"]
[null,"Quesiti/area di valutazione","Commenti"]
[]
[null,"Risposta","Fornire mezzi di verifica (spiegazione e prove)"]
[null,null,null,null,null,{"$f":"IF(E40=1,TRUE,FALSE)","v":false}]
[null,null,null,null,null,{"$f":"IF(E40=2,TRUE,FALSE)","v":false}]
[null,null,null,null,null,{"$f":"IF(E40=3,TRUE,FALSE)","v":false}]
[null,null,null,null,null,{"$f":"IF(E40=4,TRUE,FALSE)","v":false}]
[null,"Azioni per raggiungere la massima resilienza","Istituzione responsabile","Scala temporale"]

{"sheet":"E05","index":7,"n_rows":33,"n_cols":6,"rows_kept":33,"cut":false,"hidden":false,"merged":[[28,2,31,3],[3,2,3,3],[4,2,4,3],[5,2,5,3],[6,2,9,3],[14,2,14,3],[15,2,15,3],[16,2,16,3],[17,2,20,3],[25,2,25,3],[26,2,26,3],[27,2,27,3]]}
[]
[]
[null,"P5.1 - Coscienza e comprensione delle funzioni/servizi ecosistemici"]
[null,"Quesiti/area di valutazione","Commenti"]
[]
[null,"Risposta","Fornire mezzi di verifica (spiegazione e prove)"]
[null,null,null,null,null,{"$f":"IF(E7=1,TRUE,FALSE)","v":false}]
[null,null,null,null,null,{"$f":"IF(E7=2,TRUE,FALSE)","v":false}]
[null,null,null,null,null,{"$f":"IF(E7=3,TRUE,FALSE)","v":false}]
[null,null,null,null,null,{"$f":"IF(E7=4,TRUE,FALSE)","v":false}]
[null,"Azioni per raggiungere la massima resilienza","Istituzione responsabile","Scala temporale"]
[]
[]
[null,"P5.2 - Integrazione dell’ infrastruttura verde e blu nella politica e nei progetti della città"]
[null,"Quesiti/area di valutazione","Commenti"]
[]
[null,"Risposta","Fornire mezzi di verifica (spiegazione e prove)"]
[null,null,null,null,null,{"$f":"IF(E18=1,TRUE,FALSE)","v":false}]
[null,null,null,null,null,{"$f":"IF(E18=2,TRUE,FALSE)","v":false}]
[null,null,null,null,null,{"$f":"IF(E18=3,TRUE,FALSE)","v":false}]
[null,null,null,null,null,{"$f":"IF(E18=4,TRUE,FALSE)","v":false}]
[null,"Azioni per raggiungere la massima resilienza","Istituzione responsabile","Scala temporale"]
[]
[]
[null,"P5.3 - Problemi ambientali transfrontalieri"]
[null,"Quesiti/area di valutazione","Commenti"]
[]
[null,"Risposta","Fornire mezzi di verifica (spiegazione e prove)"]
[null,null,null,null,null,{"$f":"IF(E29=1,TRUE,FALSE)","v":false}]
[null,null,null,null,null,{"$f":"IF(E29=2,TRUE,FALSE)","v":false}]
[null,null,null,null,null,{"$f":"IF(E29=3,TRUE,FALSE)","v":false}]
[null,null,null,null,null,{"$f":"IF(E29=4,TRUE,FALSE)","v":false}]
[null,"Azioni per raggiungere la massima resilienza","Istituzione responsabile","Scala temporale"]

{"sheet":"E06","index":8,"n_rows":66,"n_cols":6,"rows_kept":66,"cut":false,"hidden":false,"merged":[[61,2,64,3],[36,2,36,3],[37,2,37,3],[38,2,38,3],[39,2,42,3],[47,2,47,3],[48,2,48,3],[49,2,49,3],[50,2,53,3],[58,2,58,3],[59,2,59,3],[60,2,60,3],[28,2,31,3],[3,2,3,3],[4,2,4,3],[5,2,5,3],[6,2,9,3],[14,2,14,3],[15,2,15,3],[16,2,16,3],[17,2,20,3],[25,2,25,3],[26,2,26,3],[27,2,27,3]]}
[]
[]
[null,"P6.1 - Abilità ed esperienza"]
[null,"Quesiti/area di valutazione","Commenti"]
[]
[null,"Risposta","Fornire mezzi di verifica (spiegazione e prove)"]
[null,null,null,null,null,{"$f":"IF(E7=1,TRUE,FALSE)","v":false}]
[null,null,null,null,null,{"$f":"IF(E7=2,TRUE,FALSE)","v":false}]
[null,null,null,null,null,{"$f":"IF(E7=3,TRUE,FALSE)","v":false}]
[null,null,null,null,null,{"$f":"IF(E7=4,TRUE,FALSE)","v":false}]
[null,"Azioni per raggiungere la massima resilienza","Istituzione responsabile","Scala temporale"]
[]
[]
[null,"P6.2 - Educazione pubblica e consapevolezza"]
[null,"Quesiti/area di valutazione","Commenti"]
[]
[null,"Risposta","Fornire mezzi di verifica (spiegazione e prove)"]
[null,null,null,null,null,{"$f":"IF(E18=1,TRUE,FALSE)","v":false}]
[null,null,null,null,null,{"$f":"IF(E18=2,TRUE,FALSE)","v":false}]
[null,null,null,null,null,{"$f":"IF(E18=3,TRUE,FALSE)","v":false}]
[null,null,null,null,null,{"$f":"IF(E18=4,TRUE,FALSE)","v":false}]
[null,"Azioni per raggiungere la massima resilienza","Istituzione responsabile","Scala temporale"]
[]
[]
[null,"P6.3 - Condivisione dei dati"]
[null,"Quesiti/area di valutazione","Commenti"]
[]
[null,"Risposta","Fornire mezzi di verifica (spiegazione e prove)"]
[null,null,null,null,null,{"$f":"IF(E29=1,TRUE,FALSE)","v":false}]
[null,null,null,null,null,{"$f":"IF(E29=2,TRUE,FALSE)","v":false}]
[null,null,null,null,null,{"$f":"IF(E29=3,TRUE,FALSE)","v":false}]
[null,null,null,null,null,{"$f":"IF(E29=4,TRUE,FALSE)","v":false}]
[null,"Azioni per raggiungere la massima resilienza","Istituzione responsabile","Scala temporale"]
[]
[]
[null,"P6.4 - Formazione"]
[null,"Quesiti/area di valutazione","Commenti"]
[]
[null,"Risposta","Fornire mezzi di verifica (spiegazione e prove)"]
[null,null,null,null,null,{"$f":"IF(E40=1,TRUE,FALSE)","v":false}]
[null,null,null,null,null,{"$f":"IF(E40=2,TRUE,FALSE)","v":false}]
[null,null,null,null,null,{"$f":"IF(E40=3,TRUE,FALSE)","v":false}]
[null,null,null,null,null,{"$f":"IF(E40=4,TRUE,FALSE)","v":false}]
[null,"Azioni per raggiungere la massima resilienza","Istituzione responsabile","Scala temporale"]
[]
[]
[null,"P6.5 - Lingue"]
[null,"Quesiti/area di valutazione","Commenti"]
[]
[null,"Risposta","Fornire mezzi di verifica (spiegazione e prove)"]
[null,null,null,null,null,{"$f":"IF(E51=1,TRUE,FALSE)","v":false}]
[null,null,null,null,null,{"$f":"IF(E51=2,TRUE,FALSE)","v":false}]
[null,null,null,null,null,{"$f":"IF(E51=3,TRUE,FALSE)","v":false}]
[null,null,null,null,null,{"$f":"IF(E51=4,TRUE,FALSE)","v":false}]
[null,"Azioni per raggiungere la massima resilienza","Istituzione responsabile","Scala temporale"]
[]
[]
[null,"P6.6 - Imparare dagli altri"]
[null,"Quesiti/area di valutazione","Commenti"]
[]
[null,"Risposta","Fornire mezzi di verifica (spiegazione e prove)"]
[null,null,null,null,null,{"$f":"IF(E62=1,TRUE,FALSE)","v":false}]
[null,null,null,null,null,{"$f":"IF(E62=2,TRUE,FALSE)","v":false}]
[null,null,null,null,null,{"$f":"IF(E62=3,TRUE,FALSE)","v":false}]
[null,null,null,null,null,{"$f":"IF(E62=4,TRUE,FALSE)","v":false}]
[null,"Azioni per raggiungere la massima resilienza","Istituzione responsabile","Scala temporale"]

{"sheet":"E07","index":9,"n_rows":44,"n_cols":6,"rows_kept":44,"cut":false,"hidden":false,"merged":[[36,2,36,3],[37,2,37,3],[38,2,38,3],[39,2,42,3],[16,2,16,3],[17,2,20,3],[25,2,25,3],[26,2,26,3],[27,2,27,3],[28,2,31,3],[15,2,15,3],[3,2,3,3],[4,2,4,3],[5,2,5,3],[6,2,9,3],[14,2,14,3]]}
[]
[]
[null,"P7.1 - Comunità o organizzazioni “di base”, network e formazione"]
[null,"Quesiti/area di valutazione","Commenti"]
[]
[null,"Risposta","Fornire mezzi di verifica (spiegazione e prove)"]
[null,null,null,null,null,{"$f":"IF(E7=1,TRUE,FALSE)","v":false}]
[null,null,null,null,null,{"$f":"IF(E7=2,TRUE,FALSE)","v":false}]
[null,null,null,null,null,{"$f":"IF(E7=3,TRUE,FALSE)","v":false}]
[null,null,null,null,null,{"$f":"IF(E7=4,TRUE,FALSE)","v":false}]
[null,"Azioni per raggiungere la massima resilienza","Istituzione responsabile","Scala temporale"]
[]
[]
[null,"P7.2 - Networks sociali. “Non lasciare nessuno indietro”"]
[null,"Quesiti/area di valutazione","Commenti"]
[]
[null,"Risposta","Fornire mezzi di verifica (spiegazione e prove)"]
[null,null,null,null,null,{"$f":"IF(E18=1,TRUE,FALSE)","v":false}]
[null,null,null,null,null,{"$f":"IF(E18=2,TRUE,FALSE)","v":false}]
[null,null,null,null,null,{"$f":"IF(E18=3,TRUE,FALSE)","v":false}]
[null,null,null,null,null,{"$f":"IF(E18=4,TRUE,FALSE)","v":false}]
[null,"Azioni per raggiungere la massima resilienza","Istituzione responsabile","Scala temporale"]
[]
[]
[null,"P7.3 - Settore privato/ datori di lavoro"]
[null,"Quesiti/area di valutazione","Commenti"]
[]
[null,"Risposta","Fornire mezzi di verifica (spiegazione e prove)"]
[null,null,null,null,null,{"$f":"IF(E29=1,TRUE,FALSE)","v":false}]
[null,null,null,null,null,{"$f":"IF(E29=2,TRUE,FALSE)","v":false}]
[null,null,null,null,null,{"$f":"IF(E29=3,TRUE,FALSE)","v":false}]
[null,null,null,null,null,{"$f":"IF(E29=4,TRUE,FALSE)","v":false}]
[null,"Azioni per raggiungere la massima resilienza","Istituzione responsabile","Scala temporale"]
[]
[]
[null,"P7.4 - Tecniche di coinvolgimento dei cittadini"]
[null,"Quesiti/area di valutazione","Commenti"]
[]
[null,"Risposta","Fornire mezzi di verifica (spiegazione e prove)"]
[null,null,null,null,null,{"$f":"IF(E40=1,TRUE,FALSE)","v":false}]
[null,null,null,null,null,{"$f":"IF(E40=2,TRUE,FALSE)","v":false}]
[null,null,null,null,null,{"$f":"IF(E40=3,TRUE,FALSE)","v":false}]
[null,null,null,null,null,{"$f":"IF(E40=4,TRUE,FALSE)","v":false}]
[null,"Azioni per raggiungere la massima resilienza","Istituzione responsabile","Scala temporale"]

{"sheet":"E08","index":10,"n_rows":99,"n_cols":6,"rows_kept":99,"cut":false,"hidden":false,"merged":[[94,2,97,3],[80,2,80,3],[81,2,81,3],[82,2,82,3],[83,2,86,3],[91,2,91,3],[92,2,92,3],[93,2,93,3],[27,2,27,3],[61,2,64,3],[36,2,36,3],[37,2,37,3],[38,2,38,3],[39,2,42,3],[47,2,47,3],[48,2,48,3],[49,2,49,3],[50,2,53,3],[58,2,58,3],[59,2,59,3],[60,2,60,3],[15,2,15,3],[16,2,16,3],[17,2,20,3],[25,2,25,3],[26,2,26,3],[3,2,3,3],[4,2,4,3],[5,2,5,3],[6,2,9,3],[14,2,14,3],[69,2,69,3],[70,2,70,3],[71,2,71,3],[72,2,75,3],[28,2,31,3]]}
[]
[]
[null,"P8.1 - Panoramica sulle infrastrutture critiche"]
[null,"Quesiti/area di valutazione","Commenti"]
[]
[null,"Risposta","Fornire mezzi di verifica (spiegazione e prove)"]
[null,null,null,null,null,{"$f":"IF(E7=1,TRUE,FALSE)","v":false}]
[null,null,null,null,null,{"$f":"IF(E7=2,TRUE,FALSE)","v":false}]
[null,null,null,null,null,{"$f":"IF(E7=3,TRUE,FALSE)","v":false}]
[null,null,null,null,null,{"$f":"IF(E7=4,TRUE,FALSE)","v":false}]
[null,"Azioni per raggiungere la massima resilienza","Istituzione responsabile","Scala temporale"]
[]
[]
[null,"P8.2 - Infrastrutture protettive"]
[null,"Quesiti/area di valutazione","Commenti"]
[]
[null,"Risposta","Fornire mezzi di verifica (spiegazione e prove)"]
[null,null,null,null,null,{"$f":"IF(E18=1,TRUE,FALSE)","v":false}]
[null,null,null,null,null,{"$f":"IF(E18=2,TRUE,FALSE)","v":false}]
[null,null,null,null,null,{"$f":"IF(E18=3,TRUE,FALSE)","v":false}]
[null,null,null,null,null,{"$f":"IF(E18=4,TRUE,FALSE)","v":false}]
[null,"Azioni per raggiungere la massima resilienza","Istituzione responsabile","Scala temporale"]
[]
[]
[null,"P8.3 - Acqua potabile e per usi igienici"]
[null,"Quesiti/area di valutazione","Commenti"]
[]
[null,"Risposta","Fornire mezzi di verifica (spiegazione e prove)"]
[null,null,null,null,null,{"$f":"IF(E29=1,TRUE,FALSE)","v":false}]
[null,null,null,null,null,{"$f":"IF(E29=2,TRUE,FALSE)","v":false}]
[null,null,null,null,null,{"$f":"IF(E29=3,TRUE,FALSE)","v":false}]
[null,null,null,null,null,{"$f":"IF(E29=4,TRUE,FALSE)","v":false}]
[null,"Azioni per raggiungere la massima resilienza","Istituzione responsabile","Scala temporale"]
[]
[]
[null,"P8.4 - Energia "]
[null,"Quesiti/area di valutazione","Commenti"]
[]
[null,"Risposta","Fornire mezzi di verifica (spiegazione e prove)"]
[null,null,null,null,null,{"$f":"IF(E40=1,TRUE,FALSE)","v":false}]
[null,null,null,null,null,{"$f":"IF(E40=2,TRUE,FALSE)","v":false}]
[null,null,null,null,null,{"$f":"IF(E40=3,TRUE,FALSE)","v":false}]
[null,null,null,null,null,{"$f":"IF(E40=4,TRUE,FALSE)","v":false}]
[null,"Azioni per raggiungere la massima resilienza","Istituzione responsabile","Scala temporale"]
[]
[]
[null,"P8.5 - Transporti"]
[null,"Quesiti/area di valutazione","Commenti"]
[]
[null,"Risposta","Fornire mezzi di verifica (spiegazione e prove)"]
[null,null,null,null,null,{"$f":"IF(E51=1,TRUE,FALSE)","v":false}]
[null,null,null,null,null,{"$f":"IF(E51=2,TRUE,FALSE)","v":false}]
[null,null,null,null,null,{"$f":"IF(E51=3,TRUE,FALSE)","v":false}]
[null,null,null,null,null,{"$f":"IF(E51=4,TRUE,FALSE)","v":false}]
[null,"Azioni per raggiungere la massima resilienza","Istituzione responsabile","Scala temporale"]
[]
[]
[null,"P8.6 - Comunicazioni"]
[null,"Quesiti/area di valutazione","Commenti"]
[]
[null,"Risposta","Fornire mezzi di verifica (spiegazione e prove)"]
[null,null,null,null,null,{"$f":"IF(E62=1,TRUE,FALSE)","v":false}]
[null,null,null,null,null,{"$f":"IF(E62=2,TRUE,FALSE)","v":false}]
[null,null,null,null,null,{"$f":"IF(E62=3,TRUE,FALSE)","v":false}]
[null,null,null,null,null,{"$f":"IF(E62=4,TRUE,FALSE)","v":false}]
[null,"Azioni per raggiungere la massima resilienza","Istituzione responsabile","Scala temporale"]
[]
[]
[null,"P8.7 - Assistenza medica"]
[null,"Quesiti/area di valutazione","Commenti"]
[]
[null,"Risposta","Fornire mezzi di verifica (spiegazione e prove)"]
[null,null,null,null,null,{"$f":"IF(E73=1,TRUE,FALSE)","v":false}]
[null,null,null,null,null,{"$f":"IF(E73=2,TRUE,FALSE)","v":false}]
[null,null,null,null,null,{"$f":"IF(E73=3,TRUE,FALSE)","v":false}]
[null,null,null,null,null,{"$f":"IF(E73=4,TRUE,FALSE)","v":false}]
[null,"Azioni per raggiungere la massima resilienza","Istituzione responsabile","Scala temporale"]
[]
[]
[null,"P8.8 - Strutture educative"]
[null,"Quesiti/area di valutazione","Commenti"]
[]
[null,"Risposta","Fornire mezzi di verifica (spiegazione e prove)"]
[null,null,null,null,null,{"$f":"IF(E84=1,TRUE,FALSE)","v":false}]
[null,null,null,null,null,{"$f":"IF(E84=2,TRUE,FALSE)","v":false}]
[null,null,null,null,null,{"$f":"IF(E84=3,TRUE,FALSE)","v":false}]
[null,null,null,null,null,{"$f":"IF(E84=4,TRUE,FALSE)","v":false}]
[null,"Azioni per raggiungere la massima resilienza","Istituzione responsabile","Scala temporale"]
[]
[]
[null,"P8.9 - Strutture di primo intervento"]
[null,"Quesiti/area di valutazione","Commenti"]
[]
[null,"Risposta","Fornire mezzi di verifica (spiegazione e prove)"]
[null,null,null,null,null,{"$f":"IF(E95=1,TRUE,FALSE)","v":false}]
[null,null,null,null,null,{"$f":"IF(E95=2,TRUE,FALSE)","v":false}]
[null,null,null,null,null,{"$f":"IF(E95=3,TRUE,FALSE)","v":false}]
[null,null,null,null,null,{"$f":"IF(E95=4,TRUE,FALSE)","v":false}]
[null,"Azioni per raggiungere la massima resilienza","Istituzione responsabile","Scala temporale"]

{"sheet":"E09","index":11,"n_rows":77,"n_cols":6,"rows_kept":77,"cut":false,"hidden":false,"merged":[[3,2,3,3],[4,2,4,3],[5,2,5,3],[6,2,9,3],[14,2,14,3],[15,2,15,3],[16,2,16,3],[17,2,20,3],[25,2,25,3],[26,2,26,3],[27,2,27,3],[28,2,31,3],[36,2,36,3],[37,2,37,3],[38,2,38,3],[39,2,42,3],[47,2,47,3],[48,2,48,3],[49,2,49,3],[50,2,53,3],[70,2,70,3],[71,2,71,3],[72,2,75,3],[58,2,58,3],[59,2,59,3],[60,2,60,3],[61,2,64,3],[69,2,69,3]]}
[]
[]
[null,"P9.1 - Preallerta"]
[null,"Quesiti/area di valutazione","Commenti"]
[]
[null,"Risposta","Fornire mezzi di verifica (spiegazione e prove)"]
[null,null,null,null,null,{"$f":"IF(E7=1,TRUE,FALSE)","v":false}]
[null,null,null,null,null,{"$f":"IF(E7=2,TRUE,FALSE)","v":false}]
[null,null,null,null,null,{"$f":"IF(E7=3,TRUE,FALSE)","v":false}]
[null,null,null,null,null,{"$f":"IF(E7=4,TRUE,FALSE)","v":false}]
[null,"Azioni per raggiungere la massima resilienza","Istituzione responsabile","Scala temporale"]
[]
[]
[null,"P9.2 - Piani di gestione degli eventi"]
[null,"Quesiti/area di valutazione","Commenti"]
[]
[null,"Risposta","Fornire mezzi di verifica (spiegazione e prove)"]
[null,null,null,null,null,{"$f":"IF(E18=1,TRUE,FALSE)","v":false}]
[null,null,null,null,null,{"$f":"IF(E18=2,TRUE,FALSE)","v":false}]
[null,null,null,null,null,{"$f":"IF(E18=3,TRUE,FALSE)","v":false}]
[null,null,null,null,null,{"$f":"IF(E18=4,TRUE,FALSE)","v":false}]
[null,"Azioni per raggiungere la massima resilienza","Istituzione responsabile","Scala temporale"]
[]
[]
[null,"P9.3 - Esigenze di personale per la prima risposta"]
[null,"Quesiti/area di valutazione","Commenti"]
[]
[null,"Risposta","Fornire mezzi di verifica (spiegazione e prove)"]
[null,null,null,null,null,{"$f":"IF(E29=1,TRUE,FALSE)","v":false}]
[null,null,null,null,null,{"$f":"IF(E29=2,TRUE,FALSE)","v":false}]
[null,null,null,null,null,{"$f":"IF(E29=3,TRUE,FALSE)","v":false}]
[null,null,null,null,null,{"$f":"IF(E29=4,TRUE,FALSE)","v":false}]
[null,"Azioni per raggiungere la massima resilienza","Istituzione responsabile","Scala temporale"]
[]
[]
[null,"P9.4 - Bisogni di equipaggiamento e rifornimenti di soccorso"]
[null,"Quesiti/area di valutazione","Commenti"]
[]
[null,"Risposta","Fornire mezzi di verifica (spiegazione e prove)"]
[null,null,null,null,null,{"$f":"IF(E40=1,TRUE,FALSE)","v":false}]
[null,null,null,null,null,{"$f":"IF(E40=2,TRUE,FALSE)","v":false}]
[null,null,null,null,null,{"$f":"IF(E40=3,TRUE,FALSE)","v":false}]
[null,null,null,null,null,{"$f":"IF(E40=4,TRUE,FALSE)","v":false}]
[null,"Azioni per raggiungere la massima resilienza","Istituzione responsabile","Scala temporale"]
[]
[]
[null,"P9.5 - Cibo, rifugi. Beni d ibase e rifornimenti di combustibile"]
[null,"Quesiti/area di valutazione","Commenti"]
[]
[null,"Risposta","Fornire mezzi di verifica (spiegazione e prove)"]
[null,null,null,null,null,{"$f":"IF(E51=1,TRUE,FALSE)","v":false}]
[null,null,null,null,null,{"$f":"IF(E51=2,TRUE,FALSE)","v":false}]
[null,null,null,null,null,{"$f":"IF(E51=3,TRUE,FALSE)","v":false}]
[null,null,null,null,null,{"$f":"IF(E51=4,TRUE,FALSE)","v":false}]
[null,"Azioni per raggiungere la massima resilienza","Istituzione responsabile","Scala temporale"]
[]
[]
[null,"P9.6 - Interoperabilità e collaborazione tra agenzie"]
[null,"Quesiti/area di valutazione","Commenti"]
[]
[null,"Risposta","Fornire mezzi di verifica (spiegazione e prove)"]
[null,null,null,null,null,{"$f":"IF(E62=1,TRUE,FALSE)","v":false}]
[null,null,null,null,null,{"$f":"IF(E62=2,TRUE,FALSE)","v":false}]
[null,null,null,null,null,{"$f":"IF(E62=3,TRUE,FALSE)","v":false}]
[null,null,null,null,null,{"$f":"IF(E62=4,TRUE,FALSE)","v":false}]
[null,"Azioni per raggiungere la massima resilienza","Istituzione responsabile","Scala temporale"]
[]
[]
[null,"P9.7 - Esercitazioni"]
[null,"Quesiti/area di valutazione","Commenti"]
[]
[null,"Risposta","Fornire mezzi di verifica (spiegazione e prove)"]
[null,null,null,null,null,{"$f":"IF(E73=1,TRUE,FALSE)","v":false}]
[null,null,null,null,null,{"$f":"IF(E73=2,TRUE,FALSE)","v":false}]
[null,null,null,null,null,{"$f":"IF(E73=3,TRUE,FALSE)","v":false}]
[null,null,null,null,null,{"$f":"IF(E73=4,TRUE,FALSE)","v":false}]
[null,"Azioni per raggiungere la massima resilienza","Istituzione responsabile","Scala temporale"]

{"sheet":"E10","index":12,"n_rows":22,"n_cols":6,"rows_kept":22,"cut":false,"hidden":false,"merged":[[15,2,15,3],[16,2,16,3],[17,2,20,3],[3,2,3,3],[4,2,4,3],[5,2,5,3],[6,2,9,3],[14,2,14,3]]}
[]
[]
[null,"P10.1 - Pianificazione pre-evento del recupero post-evento"]
[null,"Quesiti/area di valutazione","Commenti"]
[]
[null,"Risposta","Fornire mezzi di verifica (spiegazione e prove)"]
[null,null,null,null,null,{"$f":"IF(E7=1,TRUE,FALSE)","v":false}]
[null,null,null,null,null,{"$f":"IF(E7=2,TRUE,FALSE)","v":false}]
[null,null,null,null,null,{"$f":"IF(E7=3,TRUE,FALSE)","v":false}]
[null,null,null,null,null,{"$f":"IF(E7=4,TRUE,FALSE)","v":false}]
[null,"Azioni per raggiungere la massima resilienza","Istituzione responsabile","Scala temporale"]
[]
[]
[null,"P10.2 - Lezione appresa / loops di apprendimento"]
[null,"Quesiti/area di valutazione","Commenti"]
[]
[null,"Risposta","Fornire mezzi di verifica (spiegazione e prove)"]
[null,null,null,null,null,{"$f":"IF(E18=1,TRUE,FALSE)","v":false}]
[null,null,null,null,null,{"$f":"IF(E18=2,TRUE,FALSE)","v":false}]
[null,null,null,null,null,{"$f":"IF(E18=3,TRUE,FALSE)","v":false}]
[null,null,null,null,null,{"$f":"IF(E18=4,TRUE,FALSE)","v":false}]
[null,"Azioni per raggiungere la massima resilienza","Istituzione responsabile","Scala temporale"]

{"sheet":"About","index":13,"n_rows":0,"n_cols":0,"rows_kept":0,"cut":false,"hidden":false,"merged":[]}